fUST/lending_fUST_20250627
["ID","MTS","AMOUNT","RATE_DAILY","PERIOD"]
[368034147,1751001039223,-460.0,0.00019178,2]
[368034148,1751001039234,-460.0,0.00019178,2]
[368034149,1751001039243,-460.0,0.00019178,2]
[368034150,1751001039252,-517.34,0.00019178,2]
[368034151,1751001039262,-460.0,0.00019178,2]
[368034152,1751001039271,-460.0,0.00019178,2]
[368034153,1751001039281,-407.22467121,0.00019178,2]
[368034154,1751001039294,-460.0,0.00019178,2]
[368034155,1751001039310,-460.0,0.00019178,2]
[368034156,1751001039321,-460.0,0.00019178,2]
[368034157,1751001039333,-460.0,0.00019178,2]
[368034158,1751001039344,-460.0,0.00019178,2]
[368034159,1751001039353,-465.70998,0.00019178,2]
[368034160,1751001039371,-460.0,0.00019178,2]
[368034161,1751001039382,-460.0,0.00019178,2]
[368034162,1751001039392,-460.0,0.00019178,2]
[368034163,1751001039402,-460.0,0.00019178,2]
[368034164,1751001039412,-460.0,0.00019178,2]
[368034165,1751001039421,-460.0,0.00019178,2]
[368034166,1751001039433,-460.0,0.00019178,2]
[368034167,1751001039444,-460.0,0.00019178,2]
[368034168,1751001039453,-460.0,0.00019178,2]
[368034169,1751001039466,-460.0,0.00019178,2]
[368034170,1751001039476,-462.53439296,0.00019178,2]
[368034171,1751001039490,-1076.21,0.00019178,2]
[368034172,1751001039499,-460.0,0.00019178,2]
[368034173,1751001039509,-460.0,0.00019178,2]
[368034174,1751001039533,-460.0,0.00019178,2]
[368034175,1751001039542,-460.0,0.00019178,2]
[368034176,1751001039551,-460.0,0.00019178,2]
[368034177,1751001039561,-460.0,0.00019178,2]
[368034178,1751001039570,-460.0,0.00019178,2]
[368034179,1751001039579,-416.06914749,0.00019178,2]
[368034180,1751001039588,-460.0,0.00019178,2]
[368034181,1751001039598,-460.0,0.00019178,2]
[368034182,1751001039607,-460.0,0.00019178,2]
[368034183,1751001039616,-460.0,0.00019178,2]
[368034184,1751001039625,-460.0,0.00019178,2]
[368034185,1751001039634,-460.0,0.00019178,2]
[368034186,1751001039643,-460.0,0.00019178,2]
[368034187,1751001039652,-500.0,0.00019178,2]
[368034188,1751001039661,-500.0,0.00019178,2]
[368034189,1751001039670,-258.13447406,0.00019178,2]
[368034190,1751001039680,-460.0,0.00019178,2]
[368034191,1751001039689,-460.0,0.00019178,2]
[368034192,1751001039698,-460.0,0.00019178,2]
[368034193,1751001039707,-460.0,0.00019178,2]
[368034194,1751001039717,-460.0,0.00019178,2]
[368034195,1751001039727,-460.0,0.00019178,2]
[368034196,1751001039736,-460.0,0.00019178,2]
[368034197,1751001039746,-460.0,0.00019178,2]
[368034198,1751001039755,-460.0,0.00019178,2]
[368034199,1751001039764,-460.0,0.00019178,2]
[368034200,1751001039774,-460.0,0.00019178,2]
[368034201,1751001039783,-460.0,0.00019178,2]
[368034202,1751001039793,-460.0,0.00019178,2]
[368034203,1751001039802,-460.0,0.00019178,2]
[368034204,1751001039812,-460.0,0.00019178,2]
[368034205,1751001039821,-173.38486741,0.00019178,2]
[368034206,1751001039830,-460.0,0.00019178,2]
[368034207,1751001039840,-460.0,0.00019178,2]
[368034208,1751001039850,-460.0,0.00019178,2]
[368034209,1751001039859,-460.0,0.00019178,2]
[368034210,1751001039868,-460.0,0.00019178,2]
[368034211,1751001039879,-460.0,0.00019178,2]
[368034212,1751001039888,-460.0,0.00019178,2]
[368034213,1751001039898,-530.34,0.00019178,2]
[368034214,1751001039908,-500.0,0.00019178,2]
[368034215,1751001039917,-460.0,0.00019178,2]
[368034216,1751001039927,-460.0,0.00019178,2]
[368034217,1751001039936,-460.0,0.00019178,2]
[368034218,1751001039946,-460.0,0.00019178,2]
[368034219,1751001039955,-460.0,0.00019178,2]
[368034220,1751001039965,-460.0,0.00019178,2]
[368034221,1751001039974,-460.0,0.00019178,2]
[368034222,1751001039983,-460.0,0.00019178,2]
[368034223,1751001039993,-460.0,0.00019178,2]
[368034224,1751001040002,-460.0,0.00019178,2]
[368034225,1751001040011,-460.0,0.00019178,2]
[368034226,1751001040020,-460.0,0.00019178,2]
[368034227,1751001040030,-460.0,0.00019178,2]
[368034228,1751001040039,-277.67591368,0.00019178,2]
[368034229,1751001040049,-460.0,0.00019178,2]
[368034230,1751001040058,-460.0,0.00019178,2]
[368034231,1751001040067,-460.0,0.00019178,2]
[368034232,1751001040076,-314.26246858,0.00019178,2]
[368034233,1751001040086,-460.0,0.00019178,2]
[368034234,1751001040096,-460.0,0.00019178,2]
[368034235,1751001040105,-500.0,0.00019178,2]
[368034236,1751001040114,-460.0,0.00019178,2]
[368034237,1751001040123,-460.0,0.00019178,2]
[368034238,1751001040132,-801.9,0.00019178,2]
[368034239,1751001040141,-552.52605129,0.00019178,2]
[368034240,1751001040150,-461.2571518,0.00019178,2]
[368034241,1751001040160,-460.0,0.00019178,2]
[368034242,1751001040169,-460.0,0.00019178,2]
[368034243,1751001040178,-460.0,0.00019178,2]
[368034244,1751001040187,-460.0,0.00019178,2]
[368034245,1751001040197,-460.0,0.00019178,2]
[368034246,1751001040206,-460.0,0.00019178,2]
[368034247,1751001040216,-460.0,0.00019178,2]
[368034248,1751001040353,-461.10927771,0.00019178,2]
[368034249,1751001040367,-551.24,0.00019178,2]
[368034250,1751001040377,-460.0,0.00019178,2]
[368034251,1751001040387,-460.0,0.00019178,2]
[368034252,1751001040398,-460.0,0.00019178,2]
[368034253,1751001040408,-460.0,0.00019178,2]
[368034255,1751001040418,-569.52,0.00019178,2]
[368034257,1751001040427,-460.0,0.00019178,2]
[368034259,1751001040437,-460.0,0.00019178,2]
[368034262,1751001040447,-460.0,0.00019178,2]
[368034263,1751001040456,-460.0,0.00019178,2]
[368034264,1751001040466,-460.0,0.00019178,2]
[368034265,1751001040476,-502.96695621,0.00019178,2]
[368034266,1751001040486,-460.0,0.00019178,2]
[368034267,1751001040496,-460.0,0.00019178,2]
[368034268,1751001040506,-505.37410864,0.00019178,2]
[368034269,1751001040516,-460.0,0.00019178,2]
[368034270,1751001040526,-460.0,0.00019178,2]
[368034271,1751001040536,-500.0,0.00019178,2]
[368034272,1751001040546,-460.0,0.00019178,2]
[368034273,1751001040556,-307.36363911,0.00019178,2]
[368034274,1751001040565,-460.0,0.00019178,2]
[368034276,1751001040575,-460.0,0.00019178,2]
[368034278,1751001040585,-460.0,0.00019178,2]
[368034280,1751001040596,-482.45,0.00019178,2]
[368034282,1751001040606,-2047.01,0.00019178,2]
[368034284,1751001040615,-560.03,0.00019178,2]
[368034286,1751001040625,-995.48,0.00019178,2]
[368034288,1751001040635,-460.0,0.00019178,2]
[368034290,1751001040645,-460.0,0.00019178,2]
[368034292,1751001040655,-236.81834239,0.00019178,2]
[368034294,1751001040664,-468.0735199,0.00019178,2]
[368034296,1751001040673,-499.09033635,0.00019178,2]
[368034298,1751001040682,-460.0,0.00019178,2]
[368034300,1751001040692,-527.16,0.00019178,2]
[368034302,1751001040701,-460.0,0.00019178,2]
[368034304,1751001040715,-565.35,0.00019178,2]
[368034306,1751001040724,-610.08,0.00019178,2]
[368034308,1751001040733,-460.0,0.00019178,2]
[368034310,1751001040743,-460.0,0.00019178,2]
[368034312,1751001040752,-460.0,0.00019178,2]
[368034314,1751001040761,-279.50292251,0.00019178,2]
[368034316,1751001040771,-344.98897562,0.00019178,2]
[368034318,1751001040781,-460.0,0.00019178,2]
[368034320,1751001040790,-460.62478076,0.00019178,2]
[368034322,1751001040800,-460.0,0.00019178,2]
[368034324,1751001040809,-460.0,0.00019178,2]
[368034327,1751001040822,-460.0,0.00019178,2]
[368034329,1751001040833,-460.0,0.00019178,2]
[368034331,1751001040843,-460.0,0.00019178,2]
[368034333,1751001040852,-460.0,0.00019178,2]
[368034335,1751001040862,-2134.04,0.00019178,2]
[368034336,1751001040871,-460.0,0.00019178,2]
[368034339,1751001040881,-2845.29,0.00019178,2]
[368034340,1751001040891,-460.0,0.00019178,2]
[368034343,1751001040900,-460.0,0.00019178,2]
[368034345,1751001040910,-460.0,0.00019178,2]
[368034346,1751001040919,-460.0,0.00019178,2]
[368034348,1751001040929,-460.0,0.00019178,2]
[368034351,1751001040938,-460.0,0.00019178,2]
[368034353,1751001040947,-460.0,0.00019178,2]
[368034355,1751001040957,-460.0,0.00019178,2]
[368034357,1751001040970,-460.0,0.00019178,2]
[368034359,1751001040979,-460.0,0.00019178,2]
[368034361,1751001040989,-3004.48,0.00019178,2]
[368034363,1751001040999,-460.0,0.00019178,2]
[368034365,1751001041008,-460.0,0.00019178,2]
[368034367,1751001041018,-460.0,0.00019178,2]
[368034369,1751001041027,-460.0,0.00019178,2]
[368034371,1751001041036,-614.67,0.00019178,2]
[368034373,1751001041046,-440.49483576,0.00019178,2]
[368034375,1751001041056,-460.0,0.00019178,2]
[368034377,1751001041065,-2894.9,0.00019178,2]
[368034379,1751001041075,-460.0,0.00019178,2]
[368034381,1751001041085,-460.0,0.00019178,2]
[368034383,1751001041094,-886.62,0.00019178,2]
[368034385,1751001041104,-170.13314963,0.00019178,2]
[368034387,1751001041113,-437.5163436,0.00019178,2]
[368034389,1751001041123,-460.0,0.00019178,2]
[368034391,1751001041132,-1050.51,0.00019178,2]
[368034393,1751001041142,-460.0,0.00019178,2]
[368034395,1751001041152,-1507.3,0.00019178,2]
[368034397,1751001041161,-460.0,0.00019178,2]
[368034399,1751001041171,-460.0,0.00019178,2]
[368034401,1751001041181,-1906.47,0.00019178,2]
[368034403,1751001041191,-460.0,0.00019178,2]
[368034405,1751001041200,-460.0,0.00019178,2]
[368034407,1751001041210,-460.0,0.00019178,2]
[368034409,1751001041219,-460.0,0.00019178,2]
[368034411,1751001041229,-460.0,0.00019178,2]
[368034413,1751001041238,-460.0,0.00019178,2]
[368034415,1751001041248,-460.0,0.00019178,2]
[368034417,1751001041257,-460.0,0.00019178,2]
[368034419,1751001041267,-819.23,0.00019178,2]
[368034421,1751001041276,-460.0,0.00019178,2]
[368034423,1751001041287,-460.0,0.00019178,2]
[368034425,1751001041298,-5474.85,0.00019178,2]
[368034427,1751001041309,-460.0,0.00019178,2]
[368034429,1751001041318,-460.0,0.00019178,2]
[368034431,1751001041327,-460.0,0.00019178,2]
[368034433,1751001041338,-764.31,0.00019178,2]
[368034435,1751001041348,-460.0,0.00019178,2]
[368034437,1751001041357,-3659.13,0.00019178,2]
[368034439,1751001041367,-460.0,0.00019178,2]
[368034441,1751001041376,-460.0,0.00019178,2]
[368034443,1751001041386,-574.58,0.00019178,2]
[368034445,1751001041396,-448.17310777,0.00019178,2]
[368034447,1751001041406,-2974.23,0.00019178,2]
[368034450,1751001041418,-460.0,0.00019178,2]
[368034452,1751001041430,-460.0,0.00019178,2]
[368034454,1751001041439,-420.0,0.00019178,2]
[368034456,1751001041449,-460.0,0.00019178,2]
[368034458,1751001041459,-360.00946476,0.00019178,2]
[368034460,1751001041468,-927.68,0.00019178,2]
[368034462,1751001041478,-460.0,0.00019178,2]
[368034464,1751001041487,-460.0,0.00019178,2]
[368034466,1751001041497,-460.0,0.00019178,2]
[368034468,1751001041507,-460.0,0.00019178,2]
[368034470,1751001041516,-214.69554877,0.00019178,2]
[368034472,1751001041526,-460.0,0.00019178,2]
[368034474,1751001041535,-1972.61,0.00019178,2]
[368034476,1751001041544,-462.4,0.00019178,2]
[368034478,1751001041553,-865.09,0.00019178,2]
[368034480,1751001041563,-865.09,0.00019178,2]
[368034482,1751001041572,-865.09,0.00019178,2]
[368034484,1751001041581,-865.09,0.00019178,2]
[368034486,1751001041591,-460.0,0.00019178,2]
[368034488,1751001041600,-460.0,0.00019178,2]
[368034490,1751001041609,-865.09,0.00019178,2]
[368034492,1751001041618,-865.09,0.00019178,2]
[368034494,1751001041627,-865.09,0.00019178,2]
[368034496,1751001041637,-865.09,0.00019178,2]
[368034498,1751001041647,-460.0,0.00019178,2]
[368034500,1751001041656,-876.56,0.00019178,2]
[368034502,1751001041665,-640.5,0.00019178,2]
[368034504,1751001041674,-460.0,0.00019178,2]
[368034506,1751001041684,-1966.9,0.00019178,2]
[368034508,1751001041693,-460.0,0.00019178,2]
[368034510,1751001041702,-460.0,0.00019178,2]
[368034512,1751001041712,-466.64,0.00019178,2]
[368034514,1751001041722,-460.0,0.00019178,2]
[368034516,1751001041731,-460.0,0.00019178,2]
[368034518,1751001041741,-521.29,0.00019178,2]
[368034520,1751001041755,-460.0,0.00019178,2]
[368034523,1751001041770,-200.0,0.00019178,2]
[368034526,1751001041785,-460.0,0.00019178,2]
[368034528,1751001041799,-2094.92,0.00019178,2]
[368034530,1751001041813,-460.0,0.00019178,2]
[368034533,1751001041825,-460.0,0.00019178,2]
[368034535,1751001041836,-460.0,0.00019178,2]
[368034537,1751001041849,-808.1,0.00019178,2]
[368034539,1751001041862,-460.0,0.00019178,2]
[368034542,1751001041875,-460.0,0.00019178,2]
[368034544,1751001041888,-158.69775373,0.00019178,2]
[368034547,1751001041900,-460.0,0.00019178,2]
[368034549,1751001041913,-460.0,0.00019178,2]
[368034550,1751001041925,-460.0,0.00019178,2]
[368034551,1751001041938,-460.0,0.00019178,2]
[368034552,1751001041952,-669.65,0.00019178,2]
[368034554,1751001041965,-1198.54,0.00019178,2]
[368034556,1751001041976,-2475.01,0.00019178,2]
[368034558,1751001041988,-460.0,0.00019178,2]
[368034561,1751001042004,-2609.67,0.00019178,2]
[368034563,1751001042016,-460.0,0.00019178,2]
[368034566,1751001042029,-460.0,0.00019178,2]
[368034568,1751001042041,-460.0,0.00019178,2]
[368034570,1751001042054,-460.0,0.00019178,2]
[368034573,1751001042066,-774.49,0.00019178,2]
[368034575,1751001042077,-460.0,0.00019178,2]
[368034577,1751001042088,-500.82241896,0.00019178,2]
[368034579,1751001042099,-460.0,0.00019178,2]
[368034581,1751001042111,-474.92,0.00019178,2]
[368034584,1751001042123,-1000.96,0.00019178,2]
[368034586,1751001042135,-455.3119273,0.00019178,2]
[368034588,1751001042146,-460.0,0.00019178,2]
[368034590,1751001042159,-1233.44,0.00019178,2]
[368034593,1751001042171,-460.0,0.00019178,2]
[368034595,1751001042184,-460.0,0.00019178,2]
[368034598,1751001042196,-474.55465651,0.00019178,2]
[368034600,1751001042208,-460.0,0.00019178,2]
[368034602,1751001042221,-460.0,0.00019178,2]
[368034604,1751001042232,-813.8064796,0.00019178,2]
[368034607,1751001042242,-177.935129,0.00019178,2]
[368034609,1751001042253,-500.0,0.00019178,2]
[368034611,1751001042263,-151.0,0.00019233,2]
[368034614,1751001042280,-151.0,0.00019233,2]
[368034617,1751001042299,-200.87249709,0.00019233,2]
[368034620,1751001042315,-230.47988995,0.00019233,2]
[368034622,1751001042330,-176.03797552,0.00019233,2]
[368034624,1751001042342,-500.0,0.00019233,2]
[368034626,1751001042353,-151.0,0.00019233,2]
[368034629,1751001042367,-151.0,0.00019233,2]
[368034631,1751001042379,-200.41776214,0.00019233,2]
[368034634,1751001042395,-199.22331557,0.00019233,2]
[368034637,1751001042411,-500.0,0.00019233,2]
[368034639,1751001042421,-151.0,0.00019233,2]
[368034641,1751001042432,-151.7884072,0.00019233,2]
[368034643,1751001042442,-199.03612545,0.0001926,2]
[368034645,1751001042453,-151.0,0.0001926,2]
[368034647,1751001042466,-502.19864832,0.0001926,2]
[368034650,1751001042478,-153.33909828,0.0001926,2]
[368034652,1751001042490,-151.0,0.0001926,2]
[368034654,1751001042502,-500.0,0.0001926,2]
[368034657,1751001042514,-151.0,0.0001926,2]
[368034659,1751001042529,-223.68513638,0.00019288,2]
[368034661,1751001042541,-257.26877156,0.00019288,2]
[368034664,1751001042553,-500.0,0.00019288,2]
[368034666,1751001042566,-198.58160102,0.00019288,2]
[368034668,1751001042579,-500.0,0.00019315,2]
[368034671,1751001042591,-100000.0,0.00019329,2]
[368034673,1751001042603,-500.0,0.00019343,2]
[368034675,1751001042615,-1032.3199807,0.00019351,2]
[368034678,1751001042627,-500.0,0.0001937,2]
[368034680,1751001042641,-392.288962,0.00019397,2]
[368034682,1751001042652,-865.09,0.00019451,2]
[368034685,1751001042663,-865.09,0.00019451,2]
[368034687,1751001042675,-865.09,0.00019451,2]
[368034689,1751001042686,-865.09,0.00019451,2]
[368034691,1751001042698,-865.09,0.00019451,2]
[368034693,1751001042709,-460.0,0.00019452,2]
[368034696,1751001042721,-467.31011158,0.00019452,2]
[368034698,1751001042732,-460.0,0.00019452,2]
[368034700,1751001042743,-460.0,0.00019452,2]
[368034702,1751001042754,-460.0,0.00019452,2]
[368034704,1751001042765,-543.69160738,0.00019452,2]
[368034706,1751001042776,-460.0,0.00019452,2]
[368034709,1751001042788,-460.0,0.00019452,2]
[368034711,1751001042799,-460.0,0.00019452,2]
[368034713,1751001042810,-460.0,0.00019452,2]
[368034715,1751001042821,-470.08542819,0.00019452,2]
[368034717,1751001042832,-460.0,0.00019452,2]
[368034720,1751001042843,-460.0,0.00019452,2]
[368034722,1751001042854,-460.0,0.00019452,2]
[368034724,1751001042865,-460.0,0.00019452,2]
[368034726,1751001042877,-460.0,0.00019452,2]
[368034729,1751001042889,-460.0,0.00019452,2]
[368034731,1751001042900,-460.0,0.00019452,2]
[368034733,1751001042911,-460.0,0.00019452,2]
[368034735,1751001042922,-460.0,0.00019452,2]
[368034737,1751001042932,-465.12424,0.00019452,2]
[368034739,1751001042943,-460.0,0.00019452,2]
[368034741,1751001042954,-582.4,0.00019452,2]
[368034744,1751001042965,-460.0,0.00019452,2]
[368034746,1751001042976,-210.66622379,0.00019452,2]
[368034748,1751001042987,-460.0,0.00019452,2]
[368034750,1751001042998,-460.0,0.00019452,2]
[368034753,1751001043008,-998.79,0.00019452,2]
[368034756,1751001043019,-460.0,0.00019452,2]
[368034758,1751001043030,-460.0,0.00019452,2]
[368034760,1751001043040,-460.0,0.00019452,2]
[368034762,1751001043051,-579.54023456,0.00019452,2]
[368034764,1751001043062,-460.0,0.00019452,2]
[368034766,1751001043073,-460.0,0.00019452,2]
[368034768,1751001043084,-460.0,0.00019452,2]
[368034771,1751001043095,-460.0,0.00019452,2]
[368034773,1751001043106,-460.0,0.00019452,2]
[368034775,1751001043117,-372.02718125,0.00019452,2]
[368034777,1751001043127,-460.0,0.00019452,2]
[368034779,1751001043138,-460.0,0.00019452,2]
[368034781,1751001043149,-517.34,0.00019452,2]
[368034783,1751001043159,-460.0,0.00019452,2]
[368034786,1751001043170,-460.0,0.00019452,2]
[368034788,1751001043182,-460.0,0.00019452,2]
[368034790,1751001043193,-460.0,0.00019452,2]
[368034792,1751001043204,-460.0,0.00019452,2]
[368034794,1751001043214,-472.03905629,0.00019452,2]
[368034796,1751001043226,-460.0,0.00019452,2]
[368034799,1751001043237,-460.0,0.00019452,2]
[368034801,1751001043248,-460.0,0.00019452,2]
[368034803,1751001043259,-460.0,0.00019452,2]
[368034805,1751001043271,-1076.21,0.00019452,2]
[368034808,1751001043281,-481.51,0.00019452,2]
[368034810,1751001043296,-460.0,0.00019452,2]
[368034812,1751001043307,-460.0,0.00019452,2]
[368034814,1751001043318,-460.0,0.00019452,2]
[368034816,1751001043327,-335.22868372,0.00019452,2]
[368034818,1751001043336,-460.0,0.00019452,2]
[368034820,1751001043346,-460.0,0.00019452,2]
[368034822,1751001043355,-460.0,0.00019452,2]
[368034824,1751001043365,-460.0,0.00019452,2]
[368034826,1751001043374,-460.0,0.00019452,2]
[368034848,1751001043384,-460.0,0.00019452,2]
[368034851,1751001043579,-460.0,0.00019452,2]
[368034854,1751001043590,-460.0,0.00019452,2]
[368034856,1751001043599,-460.0,0.00019452,2]
[368034858,1751001043608,-460.0,0.00019452,2]
[368034860,1751001043618,-460.0,0.00019452,2]
[368034862,1751001043627,-460.0,0.00019452,2]
[368034864,1751001043637,-460.0,0.00019452,2]
[368034866,1751001043646,-460.0,0.00019452,2]
[368034868,1751001043656,-460.0,0.00019452,2]
[368034870,1751001043665,-460.0,0.00019452,2]
[368034871,1751001043673,-160.65994211,0.00019452,2]
[368034874,1751001043683,-460.0,0.00019452,2]
[368034876,1751001043692,-460.0,0.00019452,2]
[368034878,1751001043702,-530.34,0.00019452,2]
[368034880,1751001043712,-513.39074498,0.00019452,2]
[368034882,1751001043721,-460.0,0.00019452,2]
[368034884,1751001043730,-460.0,0.00019452,2]
[368034886,1751001043740,-460.0,0.00019452,2]
[368034887,1751001043749,-460.0,0.00019452,2]
[368034889,1751001043759,-460.0,0.00019452,2]
[368034892,1751001043768,-460.0,0.00019452,2]
[368034895,1751001043778,-460.0,0.00019452,2]
[368034897,1751001043787,-460.0,0.00019452,2]
[368034899,1751001043796,-460.0,0.00019452,2]
[368034901,1751001043806,-360.0,0.00019452,2]
[368034903,1751001043815,-801.9,0.00019452,2]
[368034905,1751001043824,-460.0,0.00019452,2]
[368034906,1751001043833,-460.0,0.00019452,2]
[368034908,1751001043843,-460.0,0.00019452,2]
[368034910,1751001043851,-460.0,0.00019452,2]
[368034912,1751001043861,-551.24,0.00019452,2]
[368034914,1751001043870,-460.0,0.00019452,2]
[368034916,1751001043879,-460.0,0.00019452,2]
[368034918,1751001043888,-569.52,0.00019452,2]
[368034920,1751001043898,-460.0,0.00019452,2]
[368034922,1751001043906,-460.0,0.00019452,2]
[368034924,1751001043915,-460.0,0.00019452,2]
[368034926,1751001043925,-537.99345907,0.00019452,2]
[368034928,1751001043934,-460.0,0.00019452,2]
[368034930,1751001043943,-482.45,0.00019452,2]
[368034932,1751001043953,-2047.01,0.00019452,2]
[368034934,1751001043962,-560.03,0.00019452,2]
[368034936,1751001043971,-995.48,0.00019452,2]
[368034938,1751001043980,-460.0,0.00019452,2]
[368034940,1751001043989,-460.0,0.00019452,2]
[368034942,1751001043998,-460.0,0.00019452,2]
[368034944,1751001044007,-527.16,0.00019452,2]
[368034946,1751001044016,-565.35,0.00019452,2]
[368034948,1751001044026,-610.08,0.00019452,2]
[368034950,1751001044034,-473.7,0.00019452,2]
[368034952,1751001044043,-460.0,0.00019452,2]
[368034954,1751001044052,-460.0,0.00019452,2]
[368034956,1751001044061,-460.0,0.00019452,2]
[368034958,1751001044070,-460.0,0.00019452,2]
[368034960,1751001044079,-460.0,0.00019452,2]
[368034962,1751001044089,-2134.04,0.00019452,2]
[368034964,1751001044098,-2845.29,0.00019452,2]
[368034966,1751001044107,-460.0,0.00019452,2]
[368034968,1751001044116,-460.0,0.00019452,2]
[368034970,1751001044125,-460.0,0.00019452,2]
[368034972,1751001044135,-460.0,0.00019452,2]
[368034974,1751001044144,-3004.48,0.00019452,2]
[368034976,1751001044153,-460.0,0.00019452,2]
[368034978,1751001044162,-460.0,0.00019452,2]
[368034980,1751001044171,-460.0,0.00019452,2]
[368034982,1751001044180,-460.0,0.00019452,2]
[368034984,1751001044190,-614.67,0.00019452,2]
[368034986,1751001044199,-259.18330606,0.00019452,2]
[368034988,1751001044208,-2894.9,0.00019452,2]
[368034990,1751001044217,-460.0,0.00019452,2]
[368034992,1751001044227,-460.0,0.00019452,2]
[368034994,1751001044236,-886.62,0.00019452,2]
[368034996,1751001044245,-1050.51,0.00019452,2]
[368034998,1751001044255,-1507.3,0.00019452,2]
[368035000,1751001044264,-462.88936565,0.00019452,2]
[368035002,1751001044272,-460.0,0.00019452,2]
[368035004,1751001044282,-1906.47,0.00019452,2]
[368035006,1751001044293,-460.0,0.00019452,2]
[368035008,1751001044301,-460.0,0.00019452,2]
[368035010,1751001044311,-460.0,0.00019452,2]
[368035012,1751001044320,-460.0,0.00019452,2]
[368035014,1751001044331,-460.0,0.00019452,2]
[368035016,1751001044339,-460.0,0.00019452,2]
[368035018,1751001044349,-460.0,0.00019452,2]
[368035020,1751001044357,-819.23,0.00019452,2]
[368035021,1751001044366,-460.0,0.00019452,2]
[368035024,1751001044376,-5474.85,0.00019452,2]
[368035025,1751001044386,-460.0,0.00019452,2]
[368035028,1751001044396,-460.0,0.00019452,2]
[368035029,1751001044406,-764.31,0.00019452,2]
[368035032,1751001044415,-460.0,0.00019452,2]
[368035034,1751001044424,-3659.13,0.00019452,2]
[368035036,1751001044434,-460.0,0.00019452,2]
[368035037,1751001044443,-574.58,0.00019452,2]
[368035039,1751001044452,-2974.23,0.00019452,2]
[368035042,1751001044461,-460.0,0.00019452,2]
[368035043,1751001044470,-460.0,0.00019452,2]
[368035045,1751001044479,-927.68,0.00019452,2]
[368035047,1751001044489,-480.64822948,0.00019452,2]
[368035049,1751001044498,-460.0,0.00019452,2]
[368035051,1751001044507,-460.0,0.00019452,2]
[368035053,1751001044516,-1972.61,0.00019452,2]
[368035056,1751001044526,-462.4,0.00019452,2]
[368035058,1751001044535,-460.0,0.00019452,2]
[368035060,1751001044545,-876.56,0.00019452,2]
[368035062,1751001044555,-640.5,0.00019452,2]
[368035064,1751001044564,-460.0,0.00019452,2]
[368035066,1751001044573,-1966.9,0.00019452,2]
[368035068,1751001044581,-210.3,0.00019452,2]
[368035070,1751001044590,-270.90373731,0.00019452,2]
[368035071,1751001044600,-466.64,0.00019452,2]
[368035073,1751001044610,-460.0,0.00019452,2]
[368035075,1751001044619,-460.0,0.00019452,2]
[368035078,1751001044629,-460.0,0.00019452,2]
[368035080,1751001044638,-2094.92,0.00019452,2]
[368035081,1751001044647,-460.0,0.00019452,2]
[368035084,1751001044657,-808.1,0.00019452,2]